{"text_format":"3","workbook":"xlsx","n_sheets":5,"sheets":["CONSOLIDATED PRICES","Sheet1","PATIENT & DOCTORS LINEN","FOOD SERVICE & GENERAL WORKERS","FORENSIC PERSONNEL"],"not_rendered":{"defined_names":4},"read":"whole","date_system":"1900"}

{"sheet":"CONSOLIDATED PRICES","index":0,"n_rows":27,"n_cols":4,"rows_kept":27,"merged":[[2,0,2,3],[3,0,3,1],[4,0,4,1],[4,2,4,3],[5,0,5,3],[6,0,6,3],[7,0,7,3],[8,0,8,3],[9,0,9,3],[10,0,10,3],[11,0,11,3],[17,0,17,2],[26,0,26,1]]}
[]
[]
["PRICE PROPOSAL STRUCTURE TEMPLATE"]
["NAME OF INSTITUTION:",null,null,"ANNEXURE B"]
["BID NO: HEDP 017/21/22",null,"DEPARTMENT OF HEALTH LIMPOPO"]
["N.B. ALL Bid Price Proposals must be completed in line with the following requirements:"]
[]
["a) The price proposal must be based on ALL OF THE BID SPECIFICATIONS."]
["b) A Bid Price Proposal excluding one or more of the required services (as outlined in the bid specifications "]
["c) This price proposal structure is per a cluster (a cluster refer to a single hospital or institution), therefore bidders shall be required to supply all items as per a cluster below "]
["ONLY PRICE PROPOSALS SUBMITTED IN LINE WITH THIS TEMPLATE AND ALL THE BILL OF QUANTITIES FOR EACH OFFICE SHALL BE ACCEPTED"]
["All prices must include VAT where applicable"]
["NO.","ANNEXURES","ITEM DESCRIPTION","TOTAL PRICE"]
[1,"ANNEXURE B1","Protective Clothing Doctors",{"$f":"'PATIENT & DOCTORS LINEN'!I129","v":{"v":5.75,"d":"R5.75"}}]
[1,"ANNEXURE B2","Food service & General Workers",{"$f":"'FOOD SERVICE & GENERAL WORKERS'!I221","v":0}]
[1,"ANNEXURE B3","Forensic Pathology",{"$f":"'FORENSIC PERSONNEL'!G125:G126","v":0}]
[{"$nulls":3},0]
["TOTAL BID PRICE (VAT INCLUSIVE) (PER CLUSTER)",null,null,{"$f":"SUM(D14:D16)","v":{"v":5.75,"d":"R5.75"}}]
[]
["NO.","ANNEXURES","ITEM DESCRIPTION","SELECT % CHARGED ON COST  "]
[1,"ANNEXURE B3","Quotations(% charge on cost)protetive clothing for Patients, Doctors and Nurses",{"v":0.25,"d":"25%"}]
[2,"ANNEXURE B4","Quotations(% charge on cost)protetive clothing for Food Service, General Workers and Forensic Pathalogy",{"v":0.15,"d":"15%"}]
[]
[]
[]
[]
["Name of Company",null,null,"Date"]

{"sheet":"Sheet1","index":1,"n_rows":6,"n_cols":2,"rows_kept":6,"hidden":true}
[]
[null,{"v":0.05,"d":"5%"}]
[null,{"v":0.1,"d":"10%"}]
[null,{"v":0.15,"d":"15%"}]
[null,{"v":0.2,"d":"20%"}]
[null,{"v":0.25,"d":"25%"}]

{"sheet":"PATIENT & DOCTORS LINEN","index":2,"n_rows":129,"n_cols":9,"rows_kept":129,"merged":[[1,2,1,5],[2,4,2,6],[2,7,2,8],[3,2,3,4],[3,5,3,8],[127,1,128,6]]}
[{"$nulls":8},"ANNEXURE B1"]
[null,null,"SUPPLY AND DELIVERY OF PUBLIC HEALTH FACILITIES LINEN, PATIENT CLOTHING, PROTECTIVE CLOTHING FOR DOCTORS,NURSES,FOOD SERVICE PERSONNEL AND GENERAL WORKERS IN LIMPOPO PROVINCE"]
[null,null,"DEPARTMENT: DEPARTMENT OF HEALTH",{"$nulls":4},"BID NO : HEDP NO: 017/21/22"]
[null,null,"BIDDER'S NAME:"]
["No","Folio Per Specification","ITEM DESCRIPTION","LINEN CATERGORY","SIZES","LOCAL CONTENT","QUANTITY","PRICE PER UNIT","AMOUNT"]
["1","A1","BLANKETS, VIRGIN ACRYLIC 100%","PATIENT CLOTHING, PROTECTIVE CLOTHING FOR DOCTORS","160cm Width x 225cm Length",{"v":1,"d":"100%"},1,0,{"$f":"G6*H6","v":0}]
["2","A2","BUNNY BLANKET FOR BABY / HOSPITAL (100% BRUSHED COTTON)","PATIENT CLOTHING, PROTECTIVE CLOTHING FOR DOCTORS","120 cm Width x180cm Length",{"v":1,"d":"100%"},1,0,0]
["3","A3","BEDSPREADS, COT ","PATIENT CLOTHING, PROTECTIVE CLOTHING FOR DOCTORS","140cm Width x 180cm Length",{"v":1,"d":"100%"},1,0,0]
["4","A6","BEDSPREADS, BED ","PATIENT CLOTHING, PROTECTIVE CLOTHING FOR DOCTORS","180cm Width x 250 Length",{"v":1,"d":"100%"},1,0,0]
["5","A7","PILLOWCASE: ","PATIENT CLOTHING, PROTECTIVE CLOTHING FOR DOCTORS","50cm Width x 75cm Length x 30cm flap",{"v":1,"d":"100%"},1,0,0]
["6","A8","PILLOW: ","PATIENT CLOTHING, PROTECTIVE CLOTHING FOR DOCTORS","45cm Width x 70cm Length",{"v":1,"d":"100%"},1,0,0]
["7","A9","BABY NEST PILLOW ","PATIENT CLOTHING, PROTECTIVE CLOTHING FOR DOCTORS","55cm D  x 38cm W  x22cm L  ",{"v":1,"d":"100%"},1,0,0]
["8","A10","PILLOW PROTECTOR PVC","PATIENT CLOTHING, PROTECTIVE CLOTHING FOR DOCTORS","45cm W x 70cm L",{"v":1,"d":"100%"},1,0,0]
["9","A11","DRAW SHEET","PATIENT CLOTHING, PROTECTIVE CLOTHING FOR DOCTORS","150cm W x 200cm L",{"v":1,"d":"100%"},1,0,0]
["10","A12","DRAWSHEET PVC ","PATIENT CLOTHING, PROTECTIVE CLOTHING FOR DOCTORS","90cm W x 180cm L",{"v":1,"d":"100%"},1,0,0]
["11","A13","SHEET COT (FLAT) FOR ADULT ","PATIENT CLOTHING, PROTECTIVE CLOTHING FOR DOCTORS","135cm W x 180 cm           L",{"v":1,"d":"100%"},1,0,0]
["12","A14","SHEET COT (FLAT) FOR PAEDIATRICS ","PATIENT CLOTHING, PROTECTIVE CLOTHING FOR DOCTORS","135cm W x 180 cm           Length",{"v":1,"d":"100%"},1,0,0]
["13","A15","SHEET COT (FLAT) FOR NEONATAL ","PATIENT CLOTHING, PROTECTIVE CLOTHING FOR DOCTORS","90cm W x 135 cm           L",{"v":1,"d":"100%"},1,0,0]
["14","A16","SHEET COT (FITTED) FOR ADULT ","PATIENT CLOTHING, PROTECTIVE CLOTHING FOR DOCTORS","135cm W x 180 cm           L",{"v":1,"d":"100%"},1,0,0]
["15","A17","SHEET COT (FITTED) FOR PAEDIATRIC ","PATIENT CLOTHING, PROTECTIVE CLOTHING FOR DOCTORS","135cm W x 180 cm           L",{"v":1,"d":"100%"},1,0,0]
["16","A18","SHEET COT (FITTED) FOR NEONATAL / BASSINET","PATIENT CLOTHING, PROTECTIVE CLOTHING FOR DOCTORS","90cm W x 135 cm           L",{"v":1,"d":"100%"},1,0,0]
["17","A19","SHEET, BED (FLAT) ","PATIENT CLOTHING, PROTECTIVE CLOTHING FOR DOCTORS","180cm width x 230 length",{"v":1,"d":"100%"},1,0,0]
["18","A20","SHEET, BED (FITTED) ","PATIENT CLOTHING, PROTECTIVE CLOTHING FOR DOCTORS","180cm width x 230 length",{"v":1,"d":"100%"},1,0,0]
["19","A21","SHEET, BED (FLAT)  ","PATIENT CLOTHING, PROTECTIVE CLOTHING FOR DOCTORS","180cm width x 250 length",{"v":1,"d":"100%"},1,0,0]
["20","A22","SHEET, BED (FITTED) – WINTER SHEET","PATIENT CLOTHING, PROTECTIVE CLOTHING FOR DOCTORS","180cm width x 230 length",{"v":1,"d":"100%"},1,0,0]
["21","A23","SHEET, ABDOMINAL FENESTRATED ","PATIENT CLOTHING, PROTECTIVE CLOTHING FOR DOCTORS","180cm width x 285 length",{"v":1,"d":"100%"},1,0,{"$f":"G26*H26","v":0}]
["22","A24","SHEET, ORTHOPAEDIC (NO SLIT)","PATIENT CLOTHING, PROTECTIVE CLOTHING FOR DOCTORS","137cm Width x 230cm Length ",{"v":1,"d":"100%"},1,0,0]
["23","A26","SHEET, LITHOTOMY ","PATIENT CLOTHING, PROTECTIVE CLOTHING FOR DOCTORS",null,{"v":1,"d":"100%"},1,0,{"$f":"G28*H28","v":0}]
["24","A27","COVERS, MAYO ","PATIENT CLOTHING, PROTECTIVE CLOTHING FOR DOCTORS","110cm Width x 120 cm Length ",{"v":1,"d":"100%"},1,0,{"$f":"G29*H29","v":0}]
["25","A28","TOWEL, DRESSING WHITE","PATIENT CLOTHING, PROTECTIVE CLOTHING FOR DOCTORS","90cm width x 135 length ",{"v":1,"d":"100%"},1,0,{"$f":"G30*H30","v":0}]
["26","A29","TOWEL, DRESSING ","PATIENT CLOTHING, PROTECTIVE CLOTHING FOR DOCTORS","45 cm weidth x 45 lenths",{"v":1,"d":"100%"},1,0,{"$f":"H31*G31","v":0}]
["27","A30","TOWEL, HUCK-A-BUCK: ","PATIENT CLOTHING, PROTECTIVE CLOTHING FOR DOCTORS","75cm Width x 135 Length ",{"v":1,"d":"100%"},1,0,{"$f":"H32*G32","v":0}]
["28","A31","TOWEL, BATH TERRY TOWELLING","PATIENT CLOTHING, PROTECTIVE CLOTHING FOR DOCTORS","28cm width x 50cm Length ",{"v":1,"d":"100%"},1,0,{"$f":"H33*G33","v":0}]
["29","A32","TOWEL, LUMBAR FENESTRATED GREEN ","PATIENT CLOTHING, PROTECTIVE CLOTHING FOR DOCTORS",null,{"v":1,"d":"100%"},1,0,{"$f":"H34*G34","v":0}]
["30","A33","WRAPPER, THEATRE, INSTRUMENT TRAY","PATIENT CLOTHING, PROTECTIVE CLOTHING FOR DOCTORS","120cm width x 120cm Length",{"v":1,"d":"100%"},1,0,{"$f":"G35*H35","v":0}]
["31","A34","WRAPPER, THEATRE, INSTRUMENT TRAY","PATIENT CLOTHING, PROTECTIVE CLOTHING FOR DOCTORS","85 cm width x 85 cm Length",{"v":1,"d":"100%"},1,0,0]
["32","A35","WRAPPER, THEATRE, INSTRUMENT TRAY","PATIENT CLOTHING, PROTECTIVE CLOTHING FOR DOCTORS","60 cm width x 60 cm Length",{"v":1,"d":"100%"},1,0,0]
["33","A36","CLOTH, THEATRE EAR / ADULT GREEN ","PATIENT CLOTHING, PROTECTIVE CLOTHING FOR DOCTORS","80 cm width x 60 cm Length",{"v":1,"d":"100%"},1,0,0]
["34","A37","CLOTH, THEATRE EAR / CHILD, GREEN ","PATIENT CLOTHING, PROTECTIVE CLOTHING FOR DOCTORS","230 cm width x 120  cm Length",{"v":1,"d":"100%"},1,0,0]
["35","A38","CLOTH, THEATRE EYE / ADULT, GREEN ","PATIENT CLOTHING, PROTECTIVE CLOTHING FOR DOCTORS","112 cm width x 80 cm Length",{"v":1,"d":"100%"},1,0,0]
["36","A39","GOWN, NURSES,  CROSS-OVER ","PATIENT CLOTHING, PROTECTIVE CLOTHING FOR DOCTORS","Large 107 cm",{"v":1,"d":"100%"},1,0,0]
["37","A39","GOWN, NURSES,  CROSS-OVER ","PATIENT CLOTHING, PROTECTIVE CLOTHING FOR DOCTORS","X- Large 109 cm",{"v":1,"d":"100%"},1,0,0]
["38","A39","GOWN, NURSES,  CROSS-OVER ","PATIENT CLOTHING, PROTECTIVE CLOTHING FOR DOCTORS","XX-Large 112cm",{"v":1,"d":"100%"},1,0,0]
["39","A39","GOWN, NURSES,  CROSS-OVER ","PATIENT CLOTHING, PROTECTIVE CLOTHING FOR DOCTORS","XXX-Large 127cm",{"v":1,"d":"100%"},1,0,0]
["40","A40","GOWN, SURGEONS ","PATIENT CLOTHING, PROTECTIVE CLOTHING FOR DOCTORS","LARGE",{"v":1,"d":"100%"},1,0,0]
["41","A40","GOWN, SURGEONS ","PATIENT CLOTHING, PROTECTIVE CLOTHING FOR DOCTORS","X-LARGE",{"v":1,"d":"100%"},1,0,0]
["42","A40","GOWN, SURGEONS ","PATIENT CLOTHING, PROTECTIVE CLOTHING FOR DOCTORS","XX-LARGE",{"v":1,"d":"100%"},1,0,0]
["43","A41","THEATRE, SCRUB SHIRTS PURPLE  ","PATIENT CLOTHING, PROTECTIVE CLOTHING FOR DOCTORS","SMALL",{"v":1,"d":"100%"},1,0,0]
["44","A41","THEATRE, SCRUB SHIRTS PURPLE  ","PATIENT CLOTHING, PROTECTIVE CLOTHING FOR DOCTORS","MEDIUM",{"v":1,"d":"100%"},1,0,0]
["45","A41","THEATRE, SCRUB SHIRTS PURPLE  ","PATIENT CLOTHING, PROTECTIVE CLOTHING FOR DOCTORS","LARGE",{"v":1,"d":"100%"},1,0,0]
["46","A41","THEATRE, SCRUB SHIRTS PURPLE  ","PATIENT CLOTHING, PROTECTIVE CLOTHING FOR DOCTORS","X-LARGE",{"v":1,"d":"100%"},1,0,0]
["47","A41","THEATRE, SCRUB SHIRTS PURPLE  ","PATIENT CLOTHING, PROTECTIVE CLOTHING FOR DOCTORS","XX-LARGE",{"v":1,"d":"100%"},1,0,0]
["48","A41","THEATRE, SCRUB SHIRTS PURPLE  ","PATIENT CLOTHING, PROTECTIVE CLOTHING FOR DOCTORS","XXX-LARGE",{"v":1,"d":"100%"},1,0,0]
["49","A42","TROUSER, THEATRE, DOCTOR/ NURSES  ","PATIENT CLOTHING, PROTECTIVE CLOTHING FOR DOCTORS","MEDIUM",{"v":1,"d":"100%"},1,0,0]
["50","A42","TROUSER, THEATRE, DOCTOR/ NURSES  ","PATIENT CLOTHING, PROTECTIVE CLOTHING FOR DOCTORS","X- LARGE",{"v":1,"d":"100%"},1,0,0]
["51","A42","TROUSER, THEATRE, DOCTOR/ NURSES  ","PATIENT CLOTHING, PROTECTIVE CLOTHING FOR DOCTORS","XX-LARGE",{"v":1,"d":"100%"},1,0,0]
["52","A42","TROUSER, THEATRE, DOCTOR/ NURSES  ","PATIENT CLOTHING, PROTECTIVE CLOTHING FOR DOCTORS","XXX-LARGE",{"v":1,"d":"100%"},1,0,0]
["53","A43","DRESSING GOWNS, CHILDREN","PATIENT CLOTHING, PROTECTIVE CLOTHING FOR DOCTORS","LARGE: 11-12YEARS",{"v":1,"d":"100%"},1,0,{"$f":"G58*H58","v":0}]
["54","A43","DRESSING GOWNS, CHILDREN","PATIENT CLOTHING, PROTECTIVE CLOTHING FOR DOCTORS","X-LARGE: 14-15 YEARS",{"v":1,"d":"100%"},1,0,{"$f":"G59*H59","v":0}]
["55","A44","DRESSING GOWNS, ADULT, UNISEX ","PATIENT CLOTHING, PROTECTIVE CLOTHING FOR DOCTORS","LARGE",{"v":1,"d":"100%"},1,0,0]
["56","A44","DRESSING GOWNS, ADULT, UNISEX ","PATIENT CLOTHING, PROTECTIVE CLOTHING FOR DOCTORS","XX-LARGE",{"v":1,"d":"100%"},1,0,0]
["57","A44","DRESSING GOWNS, ADULT, UNISEX ","PATIENT CLOTHING, PROTECTIVE CLOTHING FOR DOCTORS","XXX-LARGE",{"v":1,"d":"100%"},1,0,0]
["58","A45","INFANT NIGHTIES 0-6 MONTHS ","PATIENT CLOTHING, PROTECTIVE CLOTHING FOR DOCTORS","NEW BORN",{"v":1,"d":"100%"},1,0,0]
["59","A45","INFANT NIGHTIES 0-6 MONTHS ","PATIENT CLOTHING, PROTECTIVE CLOTHING FOR DOCTORS","BABIES",{"v":1,"d":"100%"},1,0,0]
["60","A46","INFANT  NIGHTIES,  6-12 MONTHS","PATIENT CLOTHING, PROTECTIVE CLOTHING FOR DOCTORS","BABIES",{"v":1,"d":"100%"},1,0,0]
["61","A47","INFANT,NIGHT, 12-18 MONTHS  ","PATIENT CLOTHING, PROTECTIVE CLOTHING FOR DOCTORS","BABIES",{"v":1,"d":"100%"},1,0,0]
["62","A48","NIGHT DRESS, CHILDREN, PINK. NB :ALL MATERIAL TO BE COTTON FLANNELETE","PATIENT CLOTHING, PROTECTIVE CLOTHING FOR DOCTORS","BABIES",{"v":1,"d":"100%"},1,0,0]
["63","A49","NIGHT DRESS, ADULT","PATIENT CLOTHING, PROTECTIVE CLOTHING FOR DOCTORS","MEDIUM",{"v":1,"d":"100%"},1,0,0]
["64","A49","NIGHT DRESS, ADULT","PATIENT CLOTHING, PROTECTIVE CLOTHING FOR DOCTORS","LARGE",{"v":1,"d":"100%"},1,{"v":5,"d":"R 5.00"},{"v":5,"d":"R 5.00"}]
["65","A49","NIGHT DRESS, ADULT","PATIENT CLOTHING, PROTECTIVE CLOTHING FOR DOCTORS","XXX-LARGE",{"v":1,"d":"100%"},1,0,0]
["66","A51","JACKET, PYJAMA, CHILDREN","PATIENT CLOTHING, PROTECTIVE CLOTHING FOR DOCTORS","SMALL",{"v":1,"d":"100%"},1,0,0]
["67","A51","JACKET, PYJAMA, CHILDREN","PATIENT CLOTHING, PROTECTIVE CLOTHING FOR DOCTORS","MEDIUM",{"v":1,"d":"100%"},1,0,0]
["68","A51","JACKET, PYJAMA, CHILDREN","PATIENT CLOTHING, PROTECTIVE CLOTHING FOR DOCTORS","LARGE",{"v":1,"d":"100%"},1,0,0]
["69","A51","JACKET, PYJAMA, ADULT","PATIENT CLOTHING, PROTECTIVE CLOTHING FOR DOCTORS","MEDIUM",{"v":1,"d":"100%"},1,0,0]
["70","A52","JACKET, PYJAMA, ADULT","PATIENT CLOTHING, PROTECTIVE CLOTHING FOR DOCTORS","LARGE",{"v":1,"d":"100%"},1,0,0]
["71","A52","JACKET, PYJAMA, ADULT","PATIENT CLOTHING, PROTECTIVE CLOTHING FOR DOCTORS","X-LARGE",{"v":1,"d":"100%"},1,0,0]
["72","A52","JACKET, PYJAMA, ADULT","PATIENT CLOTHING, PROTECTIVE CLOTHING FOR DOCTORS","XXX-LARGE",{"v":1,"d":"100%"},1,0,0]
["73","A53","TROUSER, PYJAMA, ADULT ","PATIENT CLOTHING, PROTECTIVE CLOTHING FOR DOCTORS","MEDIUM",{"v":1,"d":"100%"},1,0,0]
["74","A53","TROUSER, PYJAMA, ADULT ","PATIENT CLOTHING, PROTECTIVE CLOTHING FOR DOCTORS","LARGE",{"v":1,"d":"100%"},1,0,0]
["75","A53","TROUSER, PYJAMA, ADULT ","PATIENT CLOTHING, PROTECTIVE CLOTHING FOR DOCTORS","X-LARGE",{"v":1,"d":"100%"},1,0,0]
["76","A53","TROUSER, PYJAMA, ADULT ","PATIENT CLOTHING, PROTECTIVE CLOTHING FOR DOCTORS","XX-LARGE",{"v":1,"d":"100%"},1,0,0]
["77","A54","BODY BAG WITH WINDOW AND ZIP, WHITE, PVC","PATIENT CLOTHING, PROTECTIVE CLOTHING FOR DOCTORS","BABY",{"v":1,"d":"100%"},1,0,0]
["78","A54","BODY BAG WITH WINDOW AND ZIP, WHITE, PVC","PATIENT CLOTHING, PROTECTIVE CLOTHING FOR DOCTORS","SMALL",{"v":1,"d":"100%"},1,0,0]
["79","A54","BODY BAG WITH WINDOW AND ZIP, WHITE, PVC","PATIENT CLOTHING, PROTECTIVE CLOTHING FOR DOCTORS","MEDIUM",{"v":1,"d":"100%"},1,0,0]
["80","A54","BODY BAG WITH WINDOW AND ZIP, WHITE, PVC","PATIENT CLOTHING, PROTECTIVE CLOTHING FOR DOCTORS","LARGE",{"v":1,"d":"100%"},1,0,0]
["81","A54","BODY BAG WITH WINDOW AND ZIP, WHITE, PVC","PATIENT CLOTHING, PROTECTIVE CLOTHING FOR DOCTORS","X-LARGE",{"v":1,"d":"100%"},1,0,0]
["82","A54","BODY BAG WITH WINDOW AND ZIP, WHITE, PVC","PATIENT CLOTHING, PROTECTIVE CLOTHING FOR DOCTORS","XXX-LARGE",{"v":1,"d":"100%"},1,0,0]
["83","A55","SHROUDS for baby","PATIENT CLOTHING, PROTECTIVE CLOTHING FOR DOCTORS","SMALL",{"v":1,"d":"100%"},1,0,0]
["84","A55","SHROUDS for baby","PATIENT CLOTHING, PROTECTIVE CLOTHING FOR DOCTORS","LARGE",{"v":1,"d":"100%"},1,0,0]
["85","A56","APRON, DOCTOR’S/ NURSES ","PATIENT CLOTHING, PROTECTIVE CLOTHING FOR DOCTORS","65cm width x 105cm Length ",{"v":1,"d":"100%"},1,0,0]
["86","A57","APRON, PLASTIC, ASSORTED COLLOURS ","PATIENT CLOTHING, PROTECTIVE CLOTHING FOR DOCTORS","68cm width x 120cm Length ",{"v":1,"d":"100%"},1,0,0]
["87","A58","THEATRE CAPS","PATIENT CLOTHING, PROTECTIVE CLOTHING FOR DOCTORS","ADULT-ONE SIZE FIT ALL",{"v":1,"d":"100%"},1,0,0]
["88","A58","OVERSHOES THEATRE  ","PATIENT CLOTHING, PROTECTIVE CLOTHING FOR DOCTORS","FROM 6 TO 12 UNISEX",{"v":1,"d":"100%"},1,0,0]
["89","A59","JACKET, FLANELETTE HELPLESS PATIENT (ORTHOPAEDIC) ","PATIENT CLOTHING, PROTECTIVE CLOTHING FOR DOCTORS","SMALL",{"v":1,"d":"100%"},1,0,0]
["90","A59","JACKET, FLANELETTE HELPLESS PATIENT (ORTHOPAEDIC) ","PATIENT CLOTHING, PROTECTIVE CLOTHING FOR DOCTORS","MEDIUM",{"v":1,"d":"100%"},1,0,0]
["91","A59","JACKET, FLANELETTE HELPLESS PATIENT (ORTHOPAEDIC) ","PATIENT CLOTHING, PROTECTIVE CLOTHING FOR DOCTORS","LARGE",{"v":1,"d":"100%"},1,0,0]
["92","A59","JACKET, FLANELETTE HELPLESS PATIENT (ORTHOPAEDIC) ","PATIENT CLOTHING, PROTECTIVE CLOTHING FOR DOCTORS","X-LARGE",{"v":1,"d":"100%"},1,0,0]
["93","A59","JACKET, FLANELETTE HELPLESS PATIENT (ORTHOPAEDIC) ","PATIENT CLOTHING, PROTECTIVE CLOTHING FOR DOCTORS","XX-LARGE",{"v":1,"d":"100%"},1,0,0]
["94","A59","JACKET, FLANELETTE HELPLESS PATIENT (ORTHOPAEDIC) ","PATIENT CLOTHING, PROTECTIVE CLOTHING FOR DOCTORS","XXX-LARGE",{"v":1,"d":"100%"},1,0,{"$f":"G99*H99","v":0}]
["95","A60","ORTHOPAEDIC PANTS- LARGE","PATIENT CLOTHING, PROTECTIVE CLOTHING FOR DOCTORS","LARGE",{"v":1,"d":"100%"},1,0,0]
["96","A61","ORTHOPAEDIC PANTS (XXX-LARGE)","PATIENT CLOTHING, PROTECTIVE CLOTHING FOR DOCTORS","XXX-LARGE",{"v":1,"d":"100%"},1,0,0]
["97","A52","THEATRE GOWN, PATIENT, WHITE, CHILD (SMALL)","PATIENT CLOTHING, PROTECTIVE CLOTHING FOR DOCTORS",null,{"v":1,"d":"100%"},1,0,0]
["98",null,null,"PATIENT CLOTHING, PROTECTIVE CLOTHING FOR DOCTORS",null,{"v":1,"d":"100%"},1,0,0]
["99","A55",null,"PATIENT CLOTHING, PROTECTIVE CLOTHING FOR DOCTORS",null,{"v":1,"d":"100%"},1,0,0]
["100","A56",null,"PATIENT CLOTHING, PROTECTIVE CLOTHING FOR DOCTORS",null,{"v":1,"d":"100%"},1,0,0]
["101",null,null,"PATIENT CLOTHING, PROTECTIVE CLOTHING FOR DOCTORS",null,{"v":1,"d":"100%"},1,0,0]
["102","A62","THEATRE GOWN","PATIENT CLOTHING, PROTECTIVE CLOTHING FOR DOCTORS","CHILD (SMALL)",{"v":1,"d":"100%"},1,0,0]
["103","A63","GOLF T-SHIRT  BUTTONLESS FOR LONG TERM PATIENTS","PATIENT CLOTHING, PROTECTIVE CLOTHING FOR DOCTORS","MEDIUM",{"v":1,"d":"100%"},1,0,0]
["104","A63","GOLF T-SHIRT  BUTTONLESS FOR LONG TERM PATIENTS","PATIENT CLOTHING, PROTECTIVE CLOTHING FOR DOCTORS","LARGE",{"v":1,"d":"100%"},1,0,0]
["105","A63","GOLF T-SHIRT  BUTTONLESS FOR LONG TERM PATIENTS","PATIENT CLOTHING, PROTECTIVE CLOTHING FOR DOCTORS","X-LARGE",{"v":1,"d":"100%"},1,0,0]
["106","A63","GOLF T-SHIRT  BUTTONLESS FOR LONG TERM PATIENTS","PATIENT CLOTHING, PROTECTIVE CLOTHING FOR DOCTORS","XX-LARGE",{"v":1,"d":"100%"},1,0,0]
["107","A63","GOLF T-SHIRT  BUTTONLESS FOR LONG TERM PATIENTS","PATIENT CLOTHING, PROTECTIVE CLOTHING FOR DOCTORS","XXX-LARGE",{"v":1,"d":"100%"},1,0,0]
["108","A64","TROUSERS FOR LONG TERM PATIENTS 82cm","PATIENT CLOTHING, PROTECTIVE CLOTHING FOR DOCTORS","MEDIUM",{"v":1,"d":"100%"},1,0,0]
["109","A64","TROUSERS FOR LONG TERM PATIENTS 82cm","PATIENT CLOTHING, PROTECTIVE CLOTHING FOR DOCTORS","LARGE",{"v":1,"d":"100%"},1,0,0]
["110","A64","TROUSERS FOR LONG TERM PATIENTS 82cm","PATIENT CLOTHING, PROTECTIVE CLOTHING FOR DOCTORS","X-LARGE",{"v":1,"d":"100%"},1,0,0]
["111","A64","TROUSERS FOR LONG TERM PATIENTS 82cm","PATIENT CLOTHING, PROTECTIVE CLOTHING FOR DOCTORS","XX-LARGE",{"v":1,"d":"100%"},1,0,0]
["112","A64","TROUSERS FOR LONG TERM PATIENTS 82cm","PATIENT CLOTHING, PROTECTIVE CLOTHING FOR DOCTORS","XXX-LARGE",{"v":1,"d":"100%"},1,0,0]
["113","A65","JERSEY  FOR LONG TERM PATIENTS( DARK BROWN)ROUND NECK","PATIENT CLOTHING, PROTECTIVE CLOTHING FOR DOCTORS","MEDIUM",{"v":1,"d":"100%"},1,0,0]
["114","A65","JERSEY  FOR LONG TERM PATIENTS( DARK BROWN)ROUND NECK","PATIENT CLOTHING, PROTECTIVE CLOTHING FOR DOCTORS","LARGE",{"v":1,"d":"100%"},1,0,0]
["115","A65","JERSEY  FOR LONG TERM PATIENTS( DARK BROWN)ROUND NECK","PATIENT CLOTHING, PROTECTIVE CLOTHING FOR DOCTORS","X-LARGE",{"v":0,"d":"0%"},1,0,0]
["116","A65","JERSEY  FOR LONG TERM PATIENTS( DARK BROWN)ROUND NECK","PATIENT CLOTHING, PROTECTIVE CLOTHING FOR DOCTORS","XX-LARGE",{"v":1,"d":"100%"},1,0,0]
["117","A65","JERSEY  FOR LONG TERM PATIENTS( DARK BROWN)ROUND NECK","PATIENT CLOTHING, PROTECTIVE CLOTHING FOR DOCTORS","XXX-LARGE",{"v":1,"d":"100%"},1,0,0]
["118","A66","COAT, DOCTOR’S WHITE –92CM ","PATIENT CLOTHING, PROTECTIVE CLOTHING FOR DOCTORS","92 CM",{"v":1,"d":"100%"},1,0,0]
["119","A67","COAT, DOCTOR’S WHITE –122CM","PATIENT CLOTHING, PROTECTIVE CLOTHING FOR DOCTORS","122CM",{"v":1,"d":"100%"},1,0,0]
["120","A68","LAUNDRY BAG  CANVAS","PATIENT CLOTHING, PROTECTIVE CLOTHING FOR DOCTORS","LARGE",{"v":1,"d":"100%"},1,0,0]
["121","A68","LAUNDRY BAG  CANVAS","PATIENT CLOTHING, PROTECTIVE CLOTHING FOR DOCTORS","MEDIUM",{"v":1,"d":"100%"},1,0,0]
[{"$nulls":7},"SUBTOTAL",{"$f":"SUM(I6:I126)","v":{"v":5,"d":"R 5.00"}}]
[{"$nulls":7},"VAT 15%",{"$f":"SUM(I6:I126)*15%","v":{"v":0.75,"d":"R 0.75"}}]
[{"$nulls":7},"TOTAL ",{"$f":"SUM(I127:I128)","v":{"v":5.75,"d":"R 5.75"}}]

{"sheet":"FOOD SERVICE & GENERAL WORKERS","index":3,"n_rows":221,"n_cols":9,"rows_kept":221,"merged":[[1,2,1,5],[2,4,2,6],[2,7,2,8],[3,2,3,4],[3,5,3,8],[60,0,68,0],[60,1,68,1],[60,2,68,2],[60,3,68,3],[69,0,77,0],[69,1,77,1],[69,2,77,2],[69,3,77,3],[78,0,87,0],[78,1,87,1],[78,2,87,2],[78,3,87,3],[88,0,97,0],[88,1,97,1],[88,2,97,2],[88,3,97,3],[98,0,107,0],[98,1,107,1],[98,2,107,2],[98,3,107,3],[108,0,112,0],[108,1,112,1],[108,2,112,2],[108,3,112,3],[113,0,117,0],[113,1,117,1],[113,2,117,2],[113,3,117,3],[118,0,127,0],[118,1,127,1],[118,2,127,2],[118,3,127,3],[128,0,137,0],[128,1,137,1],[128,2,137,2],[128,3,137,3],[138,0,146,0],[138,1,146,1],[138,2,146,2],[138,3,146,3],[147,0,155,0],[147,1,155,1],[147,2,155,2],[147,3,155,3],[156,0,161,0],[156,1,161,1],[156,2,161,2],[156,3,161,3],[162,0,170,0],[162,1,170,1],[162,2,170,2],[162,3,170,3],[171,0,179,0],[171,1,179,1],[171,2,179,2],[171,3,179,3],[180,1,188,1],[180,2,182,2],[180,3,188,3],[189,0,198,0],[189,1,198,1],[189,2,198,2],[189,3,198,3],[199,0,207,0],[199,1,207,1],[199,2,207,2],[199,3,207,3],[208,0,216,0],[208,1,216,1],[208,2,216,2],[208,3,216,3],[218,1,221,6],[218,7,219,7],[218,8,219,8],[220,7,221,7],[220,8,221,8]]}
[{"$nulls":8},"ANNEXURE B2"]
[null,null,"SUPPLY AND DELIVERY OF PUBLIC HEALTH FACILITIES LINEN, PATIENT CLOTHING, PROTECTIVE CLOTHING FOR DOCTORS,NURSES,FOOD SERVICE PERSONNEL AND GENERAL WORKERS IN LIMPOPO PROVINCE"]
[null,null,"DEPARTMENT: DEPARTMENT OF HEALTH",{"$nulls":4},"BID NO : HEDP NO: 017/21/22"]
[null,null,"BIDDER'S NAME:"]
["No","Folio Per Specification","ITEM DESCRIPTION","LINEN CATERGORY","SIZES","LOCAL CONTENT","QUANTITY","PRICE PER UNIT","AMOUNT"]
["1","F1","CHEFS TROUSERS CARGO","FOOD SERVICE PROTECTIVE CLOTHING  ","X-SMALL",{"v":1,"d":"100%"},1,0,{"$f":"G6*H6","v":0}]
["2","F1","CHEFS TROUSERS CARGO","FOOD SERVICE PROTECTIVE CLOTHING  ","SMALL",{"v":1,"d":"100%"},1,0,{"$f":"G7*H7","v":0}]
["3","F1","CHEFS TROUSERS CARGO","FOOD SERVICE PROTECTIVE CLOTHING  ","LARGE",{"v":1,"d":"100%"},1,0,0]
["4","F1","CHEFS TROUSERS CARGO","FOOD SERVICE PROTECTIVE CLOTHING  ","MEDIUM",{"v":1,"d":"100%"},1,0,0]
["5","F1","CHEFS TROUSERS CARGO","FOOD SERVICE PROTECTIVE CLOTHING  ","X-LARGE",{"v":1,"d":"100%"},1,0,0]
["6","F1","CHEFS TROUSERS CARGO","FOOD SERVICE PROTECTIVE CLOTHING  ","XX-LARGE",{"v":1,"d":"100%"},1,0,0]
["7","F1","CHEFS TROUSERS CARGO","FOOD SERVICE PROTECTIVE CLOTHING  ","XXX-LARGE",{"v":1,"d":"100%"},1,0,{"$f":"G12*H12","v":0}]
["8","F2","CHEFS TROUSERS BAGGY","FOOD SERVICE PROTECTIVE CLOTHING  ","X-SMALL",{"v":1,"d":"100%"},1,0,0]
["9","F2","CHEFS TROUSERS BAGGY","FOOD SERVICE PROTECTIVE CLOTHING  ","SMALL",{"v":1,"d":"100%"},1,0,0]
["10","F2","CHEFS TROUSERS BAGGY","FOOD SERVICE PROTECTIVE CLOTHING  ","LARGE",{"v":1,"d":"100%"},1,0,0]
["11","F2","CHEFS TROUSERS BAGGY","FOOD SERVICE PROTECTIVE CLOTHING  ","MEDIUM",{"v":1,"d":"100%"},1,0,0]
["12","F2","CHEFS TROUSERS BAGGY","FOOD SERVICE PROTECTIVE CLOTHING  ","X-LARGE",{"v":1,"d":"100%"},1,0,0]
["13","F2","CHEFS TROUSERS BAGGY","FOOD SERVICE PROTECTIVE CLOTHING  ","XX-LARGE",{"v":1,"d":"100%"},1,0,0]
["14","F2","CHEFS TROUSERS BAGGY","FOOD SERVICE PROTECTIVE CLOTHING  ","XXX-LARGE",{"v":1,"d":"100%"},1,0,0]
["15","F3","CHEFS JACKET WITH COOL VENTS","FOOD SERVICE PROTECTIVE CLOTHING  ","X-SMALL",{"v":1,"d":"100%"},1,0,0]
["16","F3","CHEFS JACKET WITH COOL VENTS","FOOD SERVICE PROTECTIVE CLOTHING  ","SMALL",{"v":1,"d":"100%"},1,0,0]
["17","F3","CHEFS JACKET WITH COOL VENTS","FOOD SERVICE PROTECTIVE CLOTHING  ","LARGE",{"v":1,"d":"100%"},1,0,0]
["18","F3","CHEFS JACKET WITH COOL VENTS","FOOD SERVICE PROTECTIVE CLOTHING  ","MEDIUM",{"v":1,"d":"100%"},1,0,0]
["19","F3","CHEFS JACKET WITH COOL VENTS","FOOD SERVICE PROTECTIVE CLOTHING  ","X-LARGE",{"v":1,"d":"100%"},1,0,0]
["20","F3","CHEFS JACKET WITH COOL VENTS","FOOD SERVICE PROTECTIVE CLOTHING  ","XX-LARGE",{"v":1,"d":"100%"},1,0,0]
["21","F3","CHEFS JACKET WITH COOL VENTS","FOOD SERVICE PROTECTIVE CLOTHING  ","XXX-LARGE",{"v":1,"d":"100%"},1,0,0]
["22","F4","BASIC BIB APRONS - STRIPED","FOOD SERVICE PROTECTIVE CLOTHING  ","85 CM LENGTH",{"v":1,"d":"100%"},1,0,0]
["23","F5","CLASSIC CHEFS HAT","FOOD SERVICE PROTECTIVE CLOTHING  ","UNISEX",{"v":1,"d":"100%"},1,0,0]
["24","F6","CLASSIC CHEFS BEANIE","FOOD SERVICE PROTECTIVE CLOTHING  ","UNISEX",{"v":1,"d":"100%"},1,0,0]
["25","F7","PROTECTIVE Le MAITRE CLOG","FOOD SERVICE PROTECTIVE CLOTHING  ","UNISEX",{"v":1,"d":"100%"},1,0,0]
["26","F8","PROTECTIVE SHOES","FOOD SERVICE PROTECTIVE CLOTHING  ","UNISEX",{"v":1,"d":"100%"},1,0,0]
["27","F9","PROTECTIVE BOOTS","FOOD SERVICE PROTECTIVE CLOTHING  ","UNISEX",{"v":1,"d":"100%"},1,0,0]
["28","F10","DISPOSABLE MASK","FOOD SERVICE PROTECTIVE CLOTHING  ","ONE SIZE FITS ALL",{"v":1,"d":"100%"},1,0,0]
["29","F11","DISPOSABLE MOP CAPS","FOOD SERVICE PROTECTIVE CLOTHING  ","ONE SIZE FITS ALL",{"v":1,"d":"100%"},1,0,0]
["30","F12","DISPOSABLE VINYL GLOVES","FOOD SERVICE PROTECTIVE CLOTHING  ","ONE SIZE FITS ALL",{"v":1,"d":"100%"},1,0,0]
["31","F13","DISPOSABLE APRONS","FOOD SERVICE PROTECTIVE CLOTHING  ","28'' X 46''",{"v":1,"d":"100%"},1,0,0]
["32","F14","WORKWARE OVERALLS","FOOD SERVICE PROTECTIVE CLOTHING  ","X-SMALL",{"v":1,"d":"100%"},1,0,0]
["33","F14","WORKWARE OVERALLS","FOOD SERVICE PROTECTIVE CLOTHING  ","SMALL",{"v":1,"d":"100%"},1,0,0]
["34","F14","WORKWARE OVERALLS","FOOD SERVICE PROTECTIVE CLOTHING  ","LARGE",{"v":1,"d":"100%"},1,0,0]
["35","F14","WORKWARE OVERALLS","FOOD SERVICE PROTECTIVE CLOTHING  ","MEDIUM",{"v":1,"d":"100%"},1,0,0]
["36","F14","WORKWARE OVERALLS","FOOD SERVICE PROTECTIVE CLOTHING  ","X-LARGE",{"v":1,"d":"100%"},1,0,0]
["37","F14","WORKWARE OVERALLS","FOOD SERVICE PROTECTIVE CLOTHING  ","XX-LARGE",{"v":1,"d":"100%"},1,0,0]
["38","F14","WORKWARE OVERALLS","FOOD SERVICE PROTECTIVE CLOTHING  ","XXX-LARGE",{"v":1,"d":"100%"},1,0,0]
["39","F15","SAFETY GUMBOOTS","FOOD SERVICE PROTECTIVE CLOTHING  ",4,{"v":1,"d":"100%"},1,0,0]
["40","F15","SAFETY GUMBOOTS","FOOD SERVICE PROTECTIVE CLOTHING  ",5,{"v":1,"d":"100%"},1,0,0]
["41","F15","SAFETY GUMBOOTS","FOOD SERVICE PROTECTIVE CLOTHING  ",6,{"v":1,"d":"100%"},1,0,0]
["42","F15","SAFETY GUMBOOTS","FOOD SERVICE PROTECTIVE CLOTHING  ",7,{"v":1,"d":"100%"},1,0,0]
["43","F15","SAFETY GUMBOOTS","FOOD SERVICE PROTECTIVE CLOTHING  ",8,{"v":1,"d":"100%"},1,0,0]
["44","F15","SAFETY GUMBOOTS","FOOD SERVICE PROTECTIVE CLOTHING  ",9,{"v":1,"d":"100%"},1,0,0]
["45","F15","SAFETY GUMBOOTS","FOOD SERVICE PROTECTIVE CLOTHING  ",10,{"v":1,"d":"100%"},1,0,0]
["46","F16","FREEZER GLOVES","FOOD SERVICE PROTECTIVE CLOTHING  ","SMALL size 7",{"v":1,"d":"100%"},1,0,0]
["47","F16","FREEZER GLOVES","FOOD SERVICE PROTECTIVE CLOTHING  ","MEDIUM  size 8",{"v":1,"d":"100%"},1,0,0]
["48","F16","FREEZER GLOVES","FOOD SERVICE PROTECTIVE CLOTHING  ","LARGE size 9",{"v":1,"d":"100%"},1,0,0]
["49","F17","FREEZER SUIT","FOOD SERVICE PROTECTIVE CLOTHING  ","X-SMALL",{"v":1,"d":"100%"},1,0,0]
["50","F17","FREEZER SUIT","FOOD SERVICE PROTECTIVE CLOTHING  ","SMALL",{"v":1,"d":"100%"},1,0,0]
["51","F17","FREEZER SUIT","FOOD SERVICE PROTECTIVE CLOTHING  ","LARGE",{"v":1,"d":"100%"},1,0,0]
["52","F17","FREEZER SUIT","FOOD SERVICE PROTECTIVE CLOTHING  ","MEDIUM",{"v":1,"d":"100%"},1,0,0]
["53","F17","FREEZER SUIT","FOOD SERVICE PROTECTIVE CLOTHING  ","X-LARGE",{"v":1,"d":"100%"},1,0,0]
["54","F17","FREEZER SUIT","FOOD SERVICE PROTECTIVE CLOTHING  ","XX-LARGE",{"v":1,"d":"100%"},1,0,0]
["55","F17","FREEZER SUIT","FOOD SERVICE PROTECTIVE CLOTHING  ","XXX-LARGE",{"v":1,"d":"100%"},1,0,0]
[56,"G1","Short sleeved Kelly Tunic: 175g 100% polyester, front and back waist darts, front patch pockets, side slits , welt pocket at the chest and tonal buttons at the centre front.","GENERAL WORKER PROTECTIVE CLOTHING",28,{"v":1,"d":"100%"},1,0,0]
[{"$nulls":4},30,{"v":1,"d":"100%"},1,0,0]
[{"$nulls":4},32,{"v":1,"d":"100%"},1,0,0]
[{"$nulls":4},34,{"v":1,"d":"100%"},1,0,0]
[{"$nulls":4},36,{"v":1,"d":"100%"},1,0,0]
[{"$nulls":4},38,{"v":1,"d":"100%"},1,0,0]
[{"$nulls":4},40,{"v":1,"d":"100%"},1,0,0]
[{"$nulls":4},42,{"v":1,"d":"100%"},1,0,0]
[{"$nulls":4},44,{"v":1,"d":"100%"},1,0,0]
[{"$f":"A61+1","v":57},"G2","Short sleeved Ivy asymmetrical Tunic, 175g 100% polyester, contrast piping, mandarin collar, rectangular buttons, side slits, front and back waist darts.","GENERAL WORKER PROTECTIVE CLOTHING",28,{"v":1,"d":"100%"},1,0,0]
[{"$nulls":4},30,{"v":1,"d":"100%"},1,0,0]
[{"$nulls":4},32,{"v":1,"d":"100%"},1,0,0]
[{"$nulls":4},34,{"v":1,"d":"100%"},1,0,0]
[{"$nulls":4},36,{"v":1,"d":"100%"},1,0,0]
[{"$nulls":4},38,{"v":1,"d":"100%"},1,0,0]
[{"$nulls":4},40,{"v":1,"d":"100%"},1,0,0]
[{"$nulls":4},42,{"v":1,"d":"100%"},1,0,0]
[{"$nulls":4},46,{"v":1,"d":"100%"},1,0,0]
[58,"G3","Ladies core scrub pants, 180g poly cotton, elasticated waistband with draw cord, front slanted pockets, stitching on front and back rise and in leg.","GENERAL WORKER PROTECTIVE CLOTHING",28,{"v":1,"d":"100%"},1,0,0]
[{"$nulls":4},30,{"v":1,"d":"100%"},1,0,0]
[{"$nulls":4},32,{"v":1,"d":"100%"},1,0,0]
[{"$nulls":4},34,{"v":1,"d":"100%"},1,0,0]
[{"$nulls":4},36,{"v":1,"d":"100%"},1,0,0]
[{"$nulls":4},38,{"v":1,"d":"100%"},1,0,0]
[{"$nulls":4},40,{"v":1,"d":"100%"},1,0,0]
[{"$nulls":4},42,{"v":1,"d":"100%"},1,0,0]
[{"$nulls":4},44,{"v":1,"d":"100%"},1,0,0]
[{"$nulls":4},46,{"v":1,"d":"100%"},1,0,0]
["59","G4","Ladies statement skirt, 100% polyester, constructed waistband with elasticated inserts in larger sizes, pencil styling, chic back slit","GENERAL WORKER PROTECTIVE CLOTHING",28,{"v":1,"d":"100%"},1,0,0]
[{"$nulls":4},30,{"v":1,"d":"100%"},1,0,0]
[{"$nulls":4},32,{"v":1,"d":"100%"},1,0,0]
[{"$nulls":4},34,{"v":1,"d":"100%"},1,0,0]
[{"$nulls":4},36,{"v":1,"d":"100%"},1,0,0]
[{"$nulls":4},38,{"v":1,"d":"100%"},1,0,0]
[{"$nulls":4},40,{"v":1,"d":"100%"},1,0,0]
[{"$nulls":4},42,{"v":1,"d":"100%"},1,0,0]
[{"$nulls":4},44,{"v":1,"d":"100%"},1,0,0]
[{"$nulls":4},46,{"v":1,"d":"100%"},1,0,0]
[60,"G5","Daisy dress, 175g 100% polyester, notches at neckline, pocket trim, self-fabric belt loop and button at the shoulders, grown on button stand, princess panels with slanted pockets, contrast piping at the neck, sleeves and pockets.","GENERAL WORKER PROTECTIVE CLOTHING",28,{"v":1,"d":"100%"},1,0,0]
[{"$nulls":4},30,{"v":1,"d":"100%"},1,0,0]
[{"$nulls":4},32,{"v":1,"d":"100%"},1,0,{"$f":"G101*H101","v":0}]
[{"$nulls":4},34,{"v":1,"d":"100%"},1,0,0]
[{"$nulls":4},36,{"v":1,"d":"100%"},1,0,0]
[{"$nulls":4},38,{"v":1,"d":"100%"},1,0,0]
[{"$nulls":4},40,{"v":1,"d":"100%"},1,0,0]
[{"$nulls":4},42,{"v":1,"d":"100%"},1,0,0]
[{"$nulls":4},44,{"v":1,"d":"100%"},1,0,0]
[{"$nulls":4},46,{"v":1,"d":"100%"},1,0,0]
[61,"G6","Hybrid fleece, 300g polyester anti-pill micro fleece with cover-seam stitch on front yoke for extra strength, double stitched hems, matching nylon zip with metal zip puller, funnel neck collar, inseam pockets.","GENERAL WORKER PROTECTIVE CLOTHING","SMALL",{"v":1,"d":"100%"},1,0,{"$f":"G109*H109","v":0}]
[{"$nulls":4},"MEDIUM",{"v":1,"d":"100%"},1,0,0]
[{"$nulls":4},"LARGE",{"v":1,"d":"100%"},1,0,0]
[{"$nulls":4},"X-LARGE",{"v":1,"d":"100%"},1,0,0]
[{"$nulls":4},"XX-LARGE",{"v":1,"d":"100%"},1,0,0]
[62,"G7","Men’s piqué knit golf shirt, 175g 65/35 poly cotton fabric, double-needle finish on sleeves and hem, two ridge collar, loose pocket, three button reinforced placket with top-stitching, self-fabric neck tape on the collar seam.","GENERAL WORKER PROTECTIVE CLOTHING","SMALL",{"v":1,"d":"100%"},1,0,0]
[{"$nulls":4},"MEDIUM",{"v":1,"d":"100%"},1,0,0]
[{"$nulls":4},"LARGE",{"v":1,"d":"100%"},1,0,0]
[{"$nulls":4},"X-LARGE",{"v":1,"d":"100%"},1,0,0]
[{"$nulls":4},"XX-LARGE",{"v":1,"d":"100%"},1,0,0]
[63,"G8","Men’s trail shirt, two chest pockets, double button cuffs, double-needle finish for extra strength and durability, versatile roll-up sleeves, breathable and water-resistant fabric, 100% lightweight nylon fabric, mesh inner back yoke","GENERAL WORKER PROTECTIVE CLOTHING",28,{"v":1,"d":"100%"},1,0,0]
[{"$nulls":4},30,{"v":1,"d":"100%"},1,0,0]
[{"$nulls":4},32,{"v":1,"d":"100%"},1,0,0]
[{"$nulls":4},34,{"v":1,"d":"100%"},1,0,0]
[{"$nulls":4},36,{"v":1,"d":"100%"},1,0,0]
[{"$nulls":4},38,{"v":1,"d":"100%"},1,0,0]
[{"$nulls":4},40,{"v":1,"d":"100%"},1,0,0]
[{"$nulls":4},42,{"v":1,"d":"100%"},1,0,0]
[{"$nulls":4},44,{"v":1,"d":"100%"},1,0,0]
[{"$nulls":4},46,{"v":1,"d":"100%"},1,0,0]
[64,"G9","Ladies trail blouse, versatile roll-up sleeves, two chest pockets, back neck yoke, tapered side seams, breathable, water-resistant fabric, 100% lightweight nylon fabric, mesh underarm insert.","GENERAL WORKER PROTECTIVE CLOTHING",28,{"v":1,"d":"100%"},1,0,0]
[{"$nulls":4},30,{"v":1,"d":"100%"},1,0,0]
[{"$nulls":4},32,{"v":1,"d":"100%"},1,0,0]
[{"$nulls":4},34,{"v":1,"d":"100%"},1,0,0]
[{"$nulls":4},36,{"v":1,"d":"100%"},1,0,0]
[{"$nulls":4},38,{"v":1,"d":"100%"},1,0,0]
[{"$nulls":4},40,{"v":1,"d":"100%"},1,0,0]
[{"$nulls":4},42,{"v":1,"d":"100%"},1,0,0]
[{"$nulls":4},44,{"v":1,"d":"100%"},1,0,0]
[{"$nulls":4},46,{"v":1,"d":"100%"},1,0,0]
[65,"G10","Ladies eve stretch jeans, two front curved pockets with a money pocket, constructed waistband, back pockets with profile stitching and a metallic zip opening, rivets added at all stress points for durability, 86/11/3 cotton polyester, lycra fabric, straight-leg.","GENERAL WORKER PROTECTIVE CLOTHING",28,{"v":1,"d":"100%"},1,0,0]
[{"$nulls":4},30,{"v":1,"d":"100%"},1,0,0]
[{"$nulls":4},32,{"v":1,"d":"100%"},1,0,0]
[{"$nulls":4},34,{"v":1,"d":"100%"},1,0,0]
[{"$nulls":4},36,{"v":1,"d":"100%"},1,0,0]
[{"$nulls":4},38,{"v":1,"d":"100%"},1,0,0]
[{"$nulls":4},40,{"v":1,"d":"100%"},1,0,0]
[{"$nulls":4},42,{"v":1,"d":"100%"},1,0,0]
[{"$nulls":4},44,{"v":1,"d":"100%"},1,0,0]
[66,"G11","Men’s original jeans, 5-pocket western style, two back pockets, two shaped front pockets and a coin pocket, studded detailing, enzyme washed cotton rich denim fabric, 12.5 Oz.","GENERAL WORKER PROTECTIVE CLOTHING",28,{"v":1,"d":"100%"},1,0,0]
[{"$nulls":4},30,{"v":1,"d":"100%"},1,0,0]
[{"$nulls":4},32,{"v":1,"d":"100%"},1,0,0]
[{"$nulls":4},34,{"v":1,"d":"100%"},1,0,0]
[{"$nulls":4},36,{"v":1,"d":"100%"},1,0,0]
[{"$nulls":4},38,{"v":1,"d":"100%"},1,0,0]
[{"$nulls":4},40,{"v":1,"d":"100%"},1,0,0]
[{"$nulls":4},42,{"v":1,"d":"100%"},1,0,0]
[{"$nulls":4},44,{"v":1,"d":"100%"},1,0,0]
[67,"G12","Outdoor hat, poly cotton twill fabric, 4-needle stitched sweatband","GENERAL WORKER PROTECTIVE CLOTHING","SMALL",{"v":1,"d":"100%"},1,0,0]
[{"$nulls":4},"MEDIUM",{"v":1,"d":"100%"},1,0,0]
[{"$nulls":4},"LARGE",{"v":1,"d":"100%"},1,0,0]
[{"$nulls":4},"X-LARGE",{"v":1,"d":"100%"},1,0,0]
[{"$nulls":4},"XX-LARGE",{"v":1,"d":"100%"},1,0,0]
[{"$nulls":4},"XXX-LARGE",{"v":1,"d":"100%"},1,0,0]
[68,"G13","CE EN ISO20347 approved occupational lightweight shoe, adjustable elasticated side panel, microfiber upper and higher heel, single density PU sole, water resistant, anti-static, anti-slip, anti-bacterial insole, oil resistant, unisex","GENERAL WORKER PROTECTIVE CLOTHING",4,{"v":1,"d":"100%"},1,0,0]
[{"$nulls":4},5,{"v":1,"d":"100%"},1,0,0]
[{"$nulls":4},6,{"v":1,"d":"100%"},1,0,0]
[{"$nulls":4},7,{"v":1,"d":"100%"},1,0,0]
[{"$nulls":4},8,{"v":1,"d":"100%"},1,0,0]
[{"$nulls":4},9,{"v":1,"d":"100%"},1,0,0]
[{"$nulls":4},10,{"v":1,"d":"100%"},1,0,0]
[{"$nulls":4},11,{"v":1,"d":"100%"},1,0,0]
[{"$nulls":4},12,{"v":1,"d":"100%"},1,0,0]
[69,"G14","SABS SANS 20345 approved defender safety boot, genuine leather upper and dual density PU sole, steel toecap with impact protection of 200 Joules, heat resistant up to 90˚C, anti-static easily removable inner sole, oil resistant, slip resistant, shock resistant.","GENERAL WORKER PROTECTIVE CLOTHING",4,{"v":1,"d":"100%"},1,0,0]
[{"$nulls":4},5,{"v":1,"d":"100%"},1,0,0]
[{"$nulls":4},6,{"v":1,"d":"100%"},1,0,0]
[{"$nulls":4},7,{"v":1,"d":"100%"},1,0,0]
[{"$nulls":4},8,{"v":1,"d":"100%"},1,0,0]
[{"$nulls":4},9,{"v":1,"d":"100%"},1,0,0]
[{"$nulls":4},10,{"v":1,"d":"100%"},1,0,0]
[{"$nulls":4},11,{"v":1,"d":"100%"},1,0,0]
[{"$nulls":4},12,{"v":1,"d":"100%"},1,0,0]
[null,"G15","SABS SANS 20345 approved armour safety shoe, genuine leather upper, dual density PU sole, steel toecap with impact protection of 200 Joules, heat resistant up to 90˚C, anti-static easily removable inner sole, oil resistant, slip resistant, shock resistant.","GENERAL WORKER PROTECTIVE CLOTHING",4,{"v":1,"d":"100%"},1,0,0]
[{"$nulls":4},5,{"v":1,"d":"100%"},1,0,0]
[70,{"$nulls":3},6,{"v":1,"d":"100%"},1,0,0]
[{"$nulls":4},7,{"v":1,"d":"100%"},1,0,0]
[{"$nulls":4},8,{"v":1,"d":"100%"},1,0,0]
[{"$nulls":4},9,{"v":1,"d":"100%"},1,0,0]
[{"$nulls":4},10,{"v":1,"d":"100%"},1,0,0]
[{"$nulls":4},11,{"v":1,"d":"100%"},1,0,0]
[{"$nulls":4},12,{"v":1,"d":"100%"},1,0,{"$f":"G189*H189","v":0}]
[71,"G16","Budget 100% cotton twill fabric conti suit Jacket with two side pockets and a monza chest pocket with single top-stitching throughout.  The pants must have elasticated waistband, triple-stitched inner leg, back and front rise, two side pockets and one back pocket., concealed YKK metallic zips.","GENERAL WORKER PROTECTIVE CLOTHING",28,{"v":1,"d":"100%"},1,0,0]
[{"$nulls":4},30,{"v":1,"d":"100%"},1,0,0]
[{"$nulls":4},32,{"v":1,"d":"100%"},1,0,0]
[{"$nulls":4},34,{"v":1,"d":"100%"},1,0,0]
[{"$nulls":4},36,{"v":1,"d":"100%"},1,0,0]
[{"$nulls":4},38,{"v":1,"d":"100%"},1,0,0]
[{"$nulls":4},40,{"v":1,"d":"100%"},1,0,0]
[{"$nulls":4},42,{"v":1,"d":"100%"},1,0,0]
[{"$nulls":4},44,{"v":1,"d":"100%"},1,0,0]
[{"$nulls":4},46,{"v":1,"d":"100%"},1,0,0]
[72,"G17","A one piece ( no gap between jacket and trousr) garment with full-length sleeves and legs like a jumpsuit(legs should be less tight-fitting) it must have two side pockets one on  the right side of the trouser and one on the left side of the trouser. It must also have two pocketson the back trouser, two buttoned pockets on the upper front of the jacket. the colour must be Navy Blue with the silver line on the side of the trouser. the material must be 100% cotton fabric which is tough enough not allow flames or chemicals to penetrate the garmets","GENERAL WORKER PROTECTIVE CLOTHING",28,{"v":1,"d":"100%"},1,0,{"$f":"G200*H200","v":0}]
[{"$nulls":4},30,{"v":1,"d":"100%"},1,0,0]
[{"$nulls":4},32,{"v":1,"d":"100%"},1,0,0]
[{"$nulls":4},34,{"v":1,"d":"100%"},1,0,0]
[{"$nulls":4},36,{"v":1,"d":"100%"},1,0,0]
[{"$nulls":4},38,{"v":1,"d":"100%"},1,0,0]
[{"$nulls":4},40,{"v":1,"d":"100%"},1,null,0]
[{"$nulls":4},42,{"v":1,"d":"100%"},1,0,0]
[{"$nulls":4},44,{"v":1,"d":"100%"},1,0,0]
[73,"G18","A two piece jacket and trouser  with full-length sleeves and legs like a jumpsuit(legs should be less tight-fitting) it must have two side pockets one on  the right side of the trouser and one on the left side of the trouser. It must also have two pocketson the back trouser, two buttoned pockets on the upper front of the jacket. the colour must be Navy Blue with the silver line on the side of the trouser. the material must be 100% cotton fabric which is tough enough not allow flames or chemicals to penetrate the garmets","GENERAL WORKER PROTECTIVE CLOTHING",28,{"v":1,"d":"100%"},1,0,{"$f":"G209*H209","v":0}]
[{"$nulls":4},30,{"v":1,"d":"100%"},1,0,0]
[{"$nulls":4},32,{"v":1,"d":"100%"},1,0,0]
[{"$nulls":4},34,{"v":1,"d":"100%"},1,0,0]
[{"$nulls":4},36,{"v":1,"d":"100%"},1,0,0]
[{"$nulls":4},38,{"v":1,"d":"100%"},1,0,0]
[{"$nulls":4},40,{"v":1,"d":"100%"},1,0,0]
[{"$nulls":4},42,{"v":1,"d":"100%"},1,0,0]
[{"$nulls":4},44,{"v":1,"d":"100%"},1,0,0]
[{"$nulls":7},"SUBTOTAL",{"$f":"SUM(I6:I217)","v":0}]
[{"$nulls":7},"VAT 15%",{"$f":"SUM(I6:I217)*15%","v":0}]
[]
[{"$nulls":7},"TOTAL",{"$f":"SUM(I218:I220)","v":0}]

{"sheet":"FORENSIC PERSONNEL","index":4,"n_rows":125,"n_cols":7,"rows_kept":125,"merged":[[1,1,1,3],[2,2,2,4],[2,5,2,6],[3,1,3,2],[3,3,3,6],[5,0,12,0],[5,1,12,1],[13,0,20,0],[13,1,20,1],[21,0,33,0],[21,1,33,1],[34,0,45,0],[34,1,45,1],[46,0,57,0],[46,1,57,1],[58,0,66,0],[58,1,66,1],[67,0,73,0],[67,1,73,1],[74,0,80,0],[74,1,80,1],[81,0,87,0],[81,1,87,1],[88,0,94,0],[88,1,94,1],[95,0,101,0],[95,1,101,1],[102,0,113,0],[102,1,113,1],[114,0,120,0],[114,1,120,1],[122,0,125,4],[122,5,123,5],[122,6,123,6],[124,5,125,5],[124,6,125,6]]}
[{"$nulls":6},"ANNEXURE B3"]
[null,"SUPPLY AND DELIVERY OF PROTECTIVE CLOTHING FOR FORENSIC PATHOLOGY SERVICES IN THE LIMPOPO DEPARTMENT OF HEALTH"]
[null,"DEPARTMENT: DEPARTMENT OF HEALTH",{"$nulls":3},"BID NO : HEDP NO: 017/21/22"]
[null,"Bidders Name:"]
["No","ITEM DESCRIPTION","SIZES","LOCAL CONTENT","QUANTITY","PRICE PER UNIT","AMOUNT"]
["FP1","WINTER JACKET - Heavy duty double layered buny stly jacket Material 50% polyster 50% cotton style double collar quilted body and sleeves, zip front with press stud closing from flap, two breast pockets, slanted hand warmer side pocket at hips, arms to be full length with elastic cuffs, Reflective tape of lime day glow & silver blocks on the back all round and arms  Branded\"Forensic Pathology\"embroided with gold threads at the back, Departmental Logo on the front left side, Forensic Pathology Services underneath, Initials and Surname of an official on the right chest side(e.g. Initials and Surname) \nColor : Navy ","Small",{"v":1,"d":"100%"},1,0,{"$f":"E6*F6","v":0}]
[null,null,"Medium",{"v":1,"d":"100%"},1,0,0]
[null,null,"Large",{"v":1,"d":"100%"},1,0,0]
[null,null,"X-Large",{"v":1,"d":"100%"},1,0,0]
[null,null,"XX-Large",{"v":1,"d":"100%"},1,0,0]
[null,null,"XXX-Large",{"v":1,"d":"100%"},1,0,0]
[null,null,"XXXX-Large",{"v":1,"d":"100%"},1,0,0]
[null,null,"XXXXX-Large",{"v":1,"d":"100%"},1,0,0]
["FP2","High Visibility Jacket\n-High visibility jacket\n- Outer 100% PU coated polyester weave 200gsm, lining with shoulder part made of fleece- 3M reflex sripes and inserts\n-2 Breast pockets with waterproof zip-concealed hood\n- Two way YKK front zip-with waterproof\n- Lining 100% polyamide, Quilting 100% polyester\n- Pen pocket and internation pocket - adjustable cuffs\nRubberized Departmental Logo on the Left front side, Branded \"Forensic Pathology Services@the back with silver reflective lettering, Printed Intials and Surname of an official on the right chest side.\nColor : Lime & Medical green\n","Small",{"v":1,"d":"100%"},1,0,0]
[null,null,"Medium",{"v":1,"d":"100%"},1,0,0]
[null,null,"Large",{"v":1,"d":"100%"},1,0,0]
[null,null,"X-Large",{"v":1,"d":"100%"},1,0,0]
[null,null,"XX-Large",{"v":1,"d":"100%"},1,0,0]
[null,null,"XXX-Large",{"v":1,"d":"100%"},1,0,0]
[null,null,"XXXX-Large",{"v":1,"d":"100%"},1,0,0]
[null,null,"XXXXX-Large",{"v":1,"d":"100%"},1,0,0]
["FP3","JUMPSUIT-MX40: 50% polyester and 50% cotton (Rip stop cotton with blood born pathogen \ncoating, Pontex- treated flame proof, Kermal-inherently flame proof, Detachable arms with with zips, Additional padding- warm, windproof jacket, 2 side angled breast pockets with zips and elasticised waist, Reflectors all round both rms and legs @knees, (lime day glow & silver blocks) SA flag on the left shoulder\n\nDepartmental logo on the front left side and forensic pathology services underneath, Branded Forensic Pathology Services@the back in gold thread. Printed Initials and Surname of an official on right chest side(INITIALS AND SURNAME)\nColor: Navy\n",30,{"v":1,"d":"100%"},1,0,0]
[null,null,32,{"v":1,"d":"100%"},1,0,0]
[null,null,34,{"v":1,"d":"100%"},1,0,0]
[null,null,36,{"v":1,"d":"100%"},1,0,0]
[null,null,38,{"v":1,"d":"100%"},1,0,0]
[null,null,38,{"v":1,"d":"100%"},1,0,0]
[null,null,40,{"v":1,"d":"100%"},1,0,0]
[null,null,42,{"v":1,"d":"100%"},1,0,0]
[null,null,44,{"v":1,"d":"100%"},1,0,0]
[null,null,46,{"v":1,"d":"100%"},1,0,0]
[null,null,48,{"v":1,"d":"100%"},1,0,0]
[null,null,50,{"v":1,"d":"100%"},1,0,0]
[null,null,58,{"v":1,"d":"100%"},1,0,0]
["FP4","2 PIECE SUIT- \n- 50% polyester and 50% cotton MX40 (Rip stop cotton with blood born pathogen coating)\n-Pontex - treated flame proof\n- Kermal - inherently flame proof\n- Detachable arms with zips: Additional padding\n- Reflectors on both arms and legs@knees,(Lime day glow and inner silver reflective scotch). Branded forensic pathology@ the back, front left to have Departemental logo on the front left side, SA flag on the left shoulder, Shirt printed initials and surname of an official on the right chest side(e.g. INITIAL AND SURNAME)\n\nCOLOR: Navy",30,{"v":1,"d":"100%"},1,0,0]
[null,null,32,{"v":1,"d":"100%"},1,0,0]
[null,null,34,{"v":1,"d":"100%"},1,0,0]
[null,null,36,{"v":1,"d":"100%"},1,0,0]
[null,null,38,{"v":1,"d":"100%"},1,0,0]
[null,null,40,{"v":1,"d":"100%"},1,0,0]
[null,null,42,{"v":1,"d":"100%"},1,0,0]
[null,null,44,{"v":1,"d":"100%"},1,0,0]
[null,null,46,{"v":1,"d":"100%"},1,0,0]
[null,null,48,{"v":1,"d":"100%"},1,0,0]
[null,null,50,{"v":1,"d":"100%"},1,0,0]
[null,null,58,{"v":1,"d":"100%"},1,0,0]
["FP5","COMBAT SUIT \nHeavy duty short sleeve shirt, 65% polyester, 35% cotton\n2 breast pockets with blunted corners with reflector bands of lime day glow & silver blocks on both arms. Branded Forensic Pathology@the back, front left side to have Departmental logo, Forensic pathology branded underneath and SA flag on the left arm shoulder, Initials and Surname of an offiicial on the right chest side(e.g. INITIALS AND SURNAME)\n\nheavy duty trouser \n65% polyester, 35% cotton\nWaist band of 55mm: belt loops, 2 straight side pockets, 2 thigh pockets with flaps, 1 field dress pocket that fastens with touch and close fastener, 1 hip pocket that fastens with concealed button and buttonhole. Bottom to have a draw string\nReflective brands of lime day glow & silver blocks at knees\ncolor: Navy",30,{"v":1,"d":"100%"},1,0,0]
[null,null,32,{"v":1,"d":"100%"},1,0,0]
[null,null,34,{"v":1,"d":"100%"},1,0,0]
[null,null,36,{"v":1,"d":"100%"},1,0,0]
[null,null,38,{"v":1,"d":"100%"},1,0,0]
[null,null,40,{"v":1,"d":"100%"},1,0,0]
[null,null,42,{"v":1,"d":"100%"},1,0,0]
[null,null,44,{"v":1,"d":"100%"},1,0,0]
[null,null,46,{"v":1,"d":"100%"},1,0,0]
[null,null,48,{"v":1,"d":"100%"},1,0,0]
[null,null,50,{"v":1,"d":"100%"},1,0,0]
[null,null,58,{"v":1,"d":"100%"},1,0,0]
["FP6","SAFETY BOOTS\n-Durable full-grain leather upper with hardwearing 1680 denier nylon panels\n-Foam ankle poll pads for added protection \n-Padded foam collar & bellows tongue for added comfort.\n-Strong rustproof non-metallic scanner safe hardware.\n-Cambrelle lining.\n-Contour molded PU foam insole for maximum comfort & shock absorption.\n-EVA midsole for underfoot for underfoot comfort.\n-Injection molded thermoplastic reinforced toe box & heel counter for added protection.\n-Wide fitting for greater comfort. Circular YKK side-zip for easy entry composite toe for protection.\n-Durable high-traction rubber outsole with non-metallic composite shank for lightweight support.\nSlip & oil-resistant outsole\n-Tested & certified to European Standards\n- EN ISO 20347:2012(OB) E FO SRA\nColor: Black  ",4,{"v":1,"d":"100%"},1,0,0]
[null,null,5,{"v":1,"d":"100%"},1,0,0]
[null,null,6,{"v":1,"d":"100%"},1,0,0]
[null,null,7,{"v":1,"d":"100%"},1,0,0]
[null,null,8,{"v":1,"d":"100%"},1,0,0]
[null,null,9,{"v":1,"d":"100%"},1,0,0]
[null,null,10,{"v":1,"d":"100%"},1,0,0]
[null,null,11,{"v":1,"d":"100%"},1,0,0]
[null,null,12,{"v":1,"d":"100%"},1,0,0]
["FP7","ALL WEATHER SUIT\nTwo tone rain suit made from a 150 denure yellow and navy oxford non breathable fabric with a PU coating. 50mm wide silver open bead reflective fabric conforming to the European EN417 and SANS 50471 standard. The jacket has a lime hi visibility knitted lining and a hood in the collar, All seams on the rain suit are sealed , to ensure the garment is 100% waterproof. Slide fastener to comply with the requirements of SANS 1822 adhesive tapes: acceptable adhesive tapes for sealing of all seams: width 20mm 3M scotch lite reflective material.\n\nInscribed \"Forensic Pathology Services\" in silver reflective lettering@ the back of jacket, printed Initials and Surname of an official on the right chest side.( e.g. INITIALS AND SURNAME)\nColor: Lime and Navy\n\nTrouser: \nPajama-type/pull-on-type, Adjustment straps at bottom herms, Elastic webbing in waist.\nStorage Bag\nflat bag, Square, Draw cord at opening\n\ncolor: Lime and Navy","Small",{"v":1,"d":"100%"},1,0,0]
[null,null,"Medium",{"v":1,"d":"100%"},1,0,0]
[null,null,"Large",{"v":1,"d":"100%"},1,0,0]
[null,null,"X-Large",{"v":1,"d":"100%"},1,0,0]
[null,null,"XX-Large",{"v":1,"d":"100%"},1,0,0]
[null,null,"XXX-Large",{"v":1,"d":"100%"},1,0,0]
[null,null,"XXXX-Large",{"v":1,"d":"100%"},1,0,0]
["FP8","WEB BELT\nBelt 50mm: with coat of arms inset Limpopo Health Logo, Fabric: cardura, nylon webbing. \n\nColor: Black","Small(90cm)",{"v":1,"d":"100%"},1,0,0]
[null,null,"Medium(110cm)",{"v":1,"d":"100%"},1,0,0]
[null,null,"Large(130cm)",{"v":1,"d":"100%"},1,0,0]
[null,null,"X-Large(150cm)",{"v":1,"d":"100%"},1,0,0]
[null,null,"XX-Large",{"v":1,"d":"100%"},1,0,0]
[null,null,"XXX-Large",{"v":1,"d":"100%"},1,0,0]
[null,null,"XXXX-Large",{"v":1,"d":"100%"},1,0,0]
["FP9","GOLF SHIRT\nshirt, golf, male, short sleeve, embroidered in gold thread: Three button placket opening, knitted collar(turn down), fitted with a patch pocket on the left chest, bottom hem to be the cover seamed, short sleeves with plain cover seamed hems, fitted with a patch pocket. 65% polyester and 35% cotton. A sample must be submitted before production\nColor: Navy ","Small ",{"v":1,"d":"100%"},1,0,0]
[null,null,"Medium",{"v":1,"d":"100%"},1,0,0]
[null,null,"Large",{"v":1,"d":"100%"},1,0,0]
[null,null,"X-Large",{"v":1,"d":"100%"},1,0,0]
[null,null,"XX-Large",{"v":1,"d":"100%"},1,0,0]
[null,null,"XXX-Large",{"v":1,"d":"100%"},1,0,0]
[null,null,"XXXX-Large",{"v":1,"d":"100%"},1,0,0]
["FP10","JACKET FREEZER\nQuilted inner, waterproof, elasticised cuffs to ensure heat retention concealed slide fastener, heavy duty press studs, two jetted side pockets and attatch hood. Fabric: Material: Navy Oxford (PVC coated)Filler 200g thermo guard, outer -65/53 work wear fabric.\nColor: Navy\n","Small ",{"v":1,"d":"100%"},1,0,0]
[null,null,"Medium",{"v":1,"d":"100%"},1,0,0]
[null,null,"Large",{"v":1,"d":"100%"},1,0,0]
[null,null,"X-Large",{"v":1,"d":"100%"},1,0,0]
[null,null,"XX-Large",{"v":1,"d":"100%"},1,0,0]
[null,null,"XXX-Large",{"v":1,"d":"100%"},1,0,0]
[null,null,"XXXX-Large",{"v":1,"d":"100%"},1,0,0]
["FP11","BEANIE\n100% acrylic yarn, stockinet or plain knit stitch long enough to turn-up. Fabric : Unisex\nColor: Navy","Small",{"v":1,"d":"100%"},1,0,0]
[null,null,"Medium",{"v":1,"d":"100%"},1,0,0]
[null,null,"Large",{"v":1,"d":"100%"},1,0,0]
[null,null,"X-Large",{"v":1,"d":"100%"},1,0,0]
[null,null,"XX-Large",{"v":1,"d":"100%"},1,0,0]
[null,null,"XXX-Large",{"v":1,"d":"100%"},1,0,0]
[null,null,"XXXX-Large",{"v":1,"d":"100%"},1,0,0]
["FP12","SKIRT PENCIL\nThree panel style with rear slit, 5 x 80mm belt loops",30,{"v":1,"d":"100%"},1,0,0]
[null,null,32,{"v":1,"d":"100%"},1,0,0]
[null,null,34,{"v":1,"d":"100%"},1,0,0]
[null,null,36,{"v":1,"d":"100%"},1,0,0]
[null,null,38,{"v":1,"d":"100%"},1,0,0]
[null,null,40,{"v":1,"d":"100%"},1,0,0]
[null,null,42,{"v":1,"d":"100%"},1,0,0]
[null,null,44,{"v":1,"d":"100%"},1,0,0]
[null,null,46,{"v":1,"d":"100%"},1,0,0]
[null,null,48,{"v":1,"d":"100%"},1,0,0]
[null,null,50,{"v":1,"d":"100%"},1,0,0]
[null,null,58,{"v":1,"d":"100%"},1,0,0]
["FP13","JERSEY, V-NECK, LONG SLEEVE UNISEX\nElbow patches consists of double field dress made from polyester- and cotton fabric(65% polyester / 35% cotton blend) Color : Navy ","Small",{"v":1,"d":"100%"},1,0,0]
[null,null,"Medium",{"v":1,"d":"100%"},1,0,0]
[null,null,"Large",{"v":1,"d":"100%"},1,0,0]
[null,null,"X-Large",{"v":1,"d":"100%"},1,0,0]
[null,null,"XX-Large",{"v":1,"d":"100%"},1,0,0]
[null,null,"XXX-Large",{"v":1,"d":"100%"},1,0,0]
[null,null,"XXXX-Large",{"v":1,"d":"100%"},1,0,{"$f":"E121*F121","v":0}]
[{"$nulls":5},"SUBTOTAL",{"$f":"SUM(G6:G121)","v":0}]
[{"$nulls":5},"VAT 15%",{"$f":"G122*15%","v":0}]
[]
[{"$nulls":5},"TOTAL",{"$f":"SUM(G122:G124)","v":0}]